Workbook

Sheet P&G's
B5: Bill of Quantities
B7: APPOINTMENT OF A CONTRACTOR FOR THE LABORATORY EQUIPMENT INSTALLATION CONTRACT
B8: FOR THE COUNCIL FOR GEOSCIENCE IN SILVERTON, PRETORIA
B9: SECTION 1200A: PRELIMINARY AND GENERAL
B11: ITEM NO | C11: PAY REF | D11: DESCRIPTION | E11: UNIT | F11: QTY | G11: RATE | H11: AMOUNT
C14: SANS 1200A.8.3 | D14: Fixed Charge Items
B15: 1 | C15: SANS 1200A.8.3.1 | D15: Contractual requirements | E15: SUM | F15: 1
C17: SANS 1200A.8.3.2 | D17: Establishment of Facilities on the Site
C19: SANS 1200A.8.3.2.2 | D19: Facilities for Contractor
B20: 2 | C20: SANS 1200A.8.3.2.2a | D20: Offices and storage sheds. | E20: SUM | F20: 1
B21: 3 | C21: SANS 1200A.8.3.2.2b | D21: Workshops. | E21: SUM | F21: 1
B22: 4 | C22: SANS 1200A.8.3.2.2c | D22: Laboratories. | E22: SUM | F22: 1
B23: 5 | C23: SANS 1200A.8.3.2.2d | D23: Living accommodation. | E23: SUM | F23: 1
B24: 6 | C24: SANS 1200A.8.3.2.2e | D24: Ablution and latrine facilities. | E24: SUM | F24: 1
B25: 7 | C25: SANS 1200A.8.3.2.2f | D25: Tools and equipment. | E25: SUM | F25: 1
B26: 8 | C26: SANS 1200A.8.3.2.2g | D26: Water supplies, electric power and communications | E26: SUM | F26: 1
B27: 9 | C27: SANS 1200A.8.3.2.2h | D27: Dealing with water | E27: SUM | F27: 1
B28: 10 | C28: SANS 1200A.8.3.2.2i | D28: Access | E28: SUM | F28: 1
B29: 11 | C29: SANS 1200A.8.3.2.2j | D29: Plant. | E29: SUM | F29: 1
B30: 12 | C30: SANS 1200A.8.3.3 | D30: Other fixed charge obligations. | E30: SUM | F30: 1
B31: 13 | C31: SANS 1200A.8.3.4 | D31: Removal of site establishment. | E31: SUM | F31: 1
C32: SANS 1200A.8.3 | D32: Value Related Items
B33: 14 | C33: SANS 1200A.8.3.1 | D33: Contractual requirements | E33: SUM | F33: 1
C34: SANS 1200A.8.3.2 | D34: Establishment of Facilities on the Site
C35: SANS 1200A.8.3.2.2 | D35: Facilities for Contractor
B36: 15 | C36: SANS 1200A.8.3.2.2a | D36: Offices and storage sheds. | E36: SUM | F36: 1
B37: 16 | C37: SANS 1200A.8.3.2.2b | D37: Workshops. | E37: SUM | F37: 1
B38: 17 | C38: SANS 1200A.8.3.2.2c | D38: Laboratories. | E38: SUM | F38: 1
B39: 18 | C39: SANS 1200A.8.3.2.2d | D39: Living accommodation. | E39: SUM | F39: 1
B40: 19 | C40: SANS 1200A.8.3.2.2e | D40: Ablution and latrine facilities. | E40: SUM | F40: 1
B41: 20 | C41: SANS 1200A.8.3.2.2f | D41: Tools and equipment. | E41: SUM | F41: 1
B42: 21 | C42: SANS 1200A.8.3.2.2g | D42: Water supplies, electric power and communications | E42: SUM | F42: 1
B43: 22 | C43: SANS 1200A.8.3.2.2h | D43: Dealing with water | E43: SUM | F43: 1
B44: 23 | C44: SANS 1200A.8.3.2.2i | D44: Access | E44: SUM | F44: 1
B45: 24 | C45: SANS 1200A.8.3.2.2j | D45: Plant. | E45: SUM | F45: 1
B46: 25 | C46: SANS 1200A.8.3.3 | D46: Other value related obligations. | E46: SUM | F46: 1
B47: 26 | C47: SANS 1200A.8.3.4 | D47: Removal of site establishment. | E47: SUM | F47: 1
C48: SANS 1200A.8.4 | D48: Time Related Items
B49: 27 | C49: SANS 1200A.8.4.1 | D49: Contractual requirements | E49: SUM | F49: 1
C50: SANS 1200A.8.4.2 | D50: Operation and Maintenance of Facilities on Site, for Duration of Construction, (unless otherwise stated)
C51: SANS 1200A.8.4.2.2 | D51: Facilities for Contractor
B52: 28 | C52: SANS 1200A.8.4.2.2a | D52: Offices and storage sheds. | E52: SUM | F52: 1
B53: 29 | C53: SANS 1200A.8.4.2.2b | D53: Workshops. | E53: SUM | F53: 1
B54: 30 | C54: SANS 1200A.8.4.2.2c | D54: Laboratories. | E54: SUM | F54: 1
B55: 31 | C55: SANS 1200A.8.4.2.2d | D55: Living accommodation. | E55: SUM | F55: 1
B56: 32 | C56: SANS 1200A.8.4.2.2e | D56: Ablution and latrine facilities. | E56: SUM | F56: 1
B57: 33 | C57: SANS 1200A.8.4.2.2f | D57: Tools and equipment. | E57: SUM | F57: 1
B58: 34 | C58: SANS 1200A.8.4.2.2g | D58: Water supplies, electric power and communications | E58: SUM | F58: 1
B59: 35 | C59: SANS 1200A.8.4.2.2h | D59: Dealing with water | E59: SUM | F59: 1
B60: 36 | C60: SANS 1200A.8.4.2.2i | D60: Access | E60: SUM | F60: 1
B61: 37 | C61: SANS 1200A.8.4.2.2j | D61: Plant. | E61: SUM | F61: 1
B62: 38 | C62: SANS 1200A.8.4.3 | D62: Supervision for duration of construction. | E62: SUM | F62: 1
B63: 39 | C63: SANS 1200A.8.4.4 | D63: Company and head office overhead costs for duration of construction. | E63: SUM | F63: 1
B64: 40 | C64: SANS 1200A.8.4.5 | D64: Other time related obligations. | E64: SUM | F64: 1
C65: SANS 1200A.8.8 | D65: Temporary Works
B66: 41 | C66: SANS 1200A.8.8.3 | D66: Protection of existing structures, buildings and installations as necessary until construction is complete. | E66: SUM | F66: 1
B67: 42 | D67: Guarantee
D68: 12 month equipment and installation guarantee period | E68: SUM | F68: 1
B69: 43 | D69: Maintenance Agreement
D70: 12-month maintenance agreement | E70: SUM | F70: 1
C71: Total carried forward to summary: SANS 1200A

Sheet Section 1
B5: ='P&G''s'!B7 -> APPOINTMENT OF A CONTRACTOR FOR THE LABORATORY EQUIPMENT INSTALLATION CONTRACT
B6: ='P&G''s'!B8 -> FOR THE COUNCIL FOR GEOSCIENCE IN SILVERTON, PRETORIA
B7: SECTION 1: GENERAL REQUIREMENTS
B9: ITEM NO | C9: DESCRIPTION | D9: UNIT | E9: QTY | F9: RATE | G9: INSTALLATION, COMMISSIONING AND TESTING
B11: 1 | C11: Project engineering, management and quality control to be provided by the contractor, in accordance with the conditions of contract in respect of mechanical installation | D11: Item | E11: 1
B12: =B11+1 -> 2 | C12: Testing, Balancing and Commissioning of the complete extraction systems Installation according to specification | D12: Item | E12: 1
B13: 3 | C13: Equipment selection submissions as per specifications | D13: Item | E13: 1
B14: 4 | C14: Operating and Maintenance manuals as per specifications | D14: Item
B15: 5 | C15: Guarantee, Maintenance and service as per specifications | D15: Item | E15: 1
B16: 6 | C16: Training of Operators and Client Maintenance staff as per specification | D16: Item | E16: 1
B17: 7 | C17: Profit, company overheads, financing, insurance and guarantee costs | D17: Item | E17: 1
B18: 8 | C18: Preparation and submittal of working/installation drawings | D18: Item | E18: 1
B19: 9 | C19: Preparation and submittal of shop drawings | D19: Item | E19: 1
B20: 10 | C20: Preparation and submittals of As Built drawings | D20: Item | E20: 1
B21: 11 | C21: Preparation and submittals of builders work drawings | D21: Item | E21: 1
B22: 12 | C22: Preparation and submittals of BMS controls diagram | D22: Item | E22: 1
B23: 13 | C23: Preparation and submittals of electrical drawings and diagram | D23: Item | E23: 1
B24: 14 | C24: Compliance with Occupational Health and Safety Act and Construction Regulation | D24: Item | E24: 1
B25: 15 | C25: Builders work and support steelwork, plinths, etc. not listed or priced elsewhere | D25: Item | E25: 1
B26: 16 | C26: Rigging of equipment | D26: Item | E26: 1
B27: 17 | C27: Any other items deemed required to successful complete the project (specify below): | D27: Item | E27: 1
B28: 18 | C28: Provisional amount for unforeseen matters | D28: Item | E28: 1 | G28: R800,000.00
C29: Total Carried Forward to Summary | H29: =SUM(H14:H28) -> R 0.00 | I29: =SUM(I14:I28) -> R 0.00

Sheet Section 2
B6: ='Section 1'!B5 -> APPOINTMENT OF A CONTRACTOR FOR THE LABORATORY EQUIPMENT INSTALLATION CONTRACT
B7: ='Section 1'!B6 -> FOR THE COUNCIL FOR GEOSCIENCE IN SILVERTON, PRETORIA
B8: SECTION 2: BLOCK D - WORK ON EXISTING EQUIPMENT
B9: All equipment must be supplied as per detail specification
B11: ITEM NO | C11: DESCRIPTION | D11: UNIT | E11: QTY | F11: RATE | G11: AMOUNT
B13: 1 | C13: Service and commissioning existing fume cabinets to manufacturers specifications, including all services, i.e. drains, water supply and fittings, compressed air supply and outlets, vacuum supply and outlets, electrical installation, lights and plugs.
B14: =B13+0.1 -> 1.1 | C14: 1200mm work chamber length | D14: no | E14: =1+1+5+2 -> 9
B15: 1.2 | C15: 1500mm work chamber length | D15: no | E15: =1+2+4+2+4 -> 13
B16: 1.3 | C16: 1500mm work chamber length (Perchloric Fume Cabinet) | D16: no | E16: 5
B17: 1.4 | C17: 1800mm work chamber length | D17: no | E17: =1+1 -> 2
B18: 1.5 | C18: 1800mm work chamber length (Perchloric Fume Cabinet) | D18: no | E18: =4 -> 4
B19: 1.6 | C19: 1800mm work chamber length (Bio-Hazard Fume Cabinet) | D19: no | E19: =1 -> 1
B20: 1.7 | C20: 2000mm work chamber length | D20: no | E20: =1 -> 1
B21: 1.8 | C21: Provisional amount for remedial work on fume cabinets | D21: Sum | G21: R350,000.00
B23: 2 | C23: Replace existing asbestos internal panels and baffle plates with polypropylene or grade 304 stainless steel or contour moulded resin impregnated fiberglass
B24: =B23+0.1 -> 2.1 | C24: 1200mm work chamber length | D24: no | E24: 5
B25: 2.2 | C25: 1500mm work chamber length | D25: no | E25: 5
B26: 2.3 | C26: 1500mm work chamber length (Perchloric Fume Cabinet) | D26: no | E26: 1
B27: 2.4 | C27: 1800mm work chamber length | D27: no | E27: 1
B28: 2.5 | C28: 1800mm work chamber length (Perchloric Fume Cabinet) | D28: no | E28: 1
B29: 2.6 | C29: 1800mm work chamber length (Bio-Hazard Fume Cabinet) | D29: no | E29: 1
B30: 2.7 | C30: 2000mm work chamber length | D30: no | E30: 1
B32: 3 | C32: Service and commission existing extraction system fans to manufactureres specification: Centrifugal fans
B33: =B32+0.1 -> 3.1 | C33: 200 l/s | D33: no | E33: 1
B34: =B33+0.1 -> 3.2 | C34: 320 l/s | D34: no | E34: 8
B35: =B34+0.1 -> 3.3 | C35: 400 l/s | D35: no | E35: 1
B36: =B35+0.1 -> 3.4 | C36: 1000 l/s | D36: no | E36: 2
B37: =B36+0.1 -> 3.5 | C37: 2200 l/s | D37: no | E37: 1
B39: 4 | C39: Service and commission existing scrubbing systems to manufacturers specification
B40: =B39+0.1 -> 4.1 | C40: SCRUB-R-01 - Flow: 320 l/s | D40: no | E40: 1
B41: =B40+0.1 -> 4.2 | C41: SCRUB-R-03 - Flow: 1325 l/s | D41: no | E41: 1
B42: =B41+0.1 -> 4.3 | C42: SCRUB-R-04 - Flow: 1440 l/s | D42: no | E42: 1
B43: 4.4 | C43: SCRUB-R-05 - Flow: 1920 l/s | D43: no | E43: 1
B44: 4.5 | C44: SCRUB-R-06 - Flow: 1600 l/s | D44: no | E44: 1
B45: 4.6 | C45: SCRUB-R-07 - Flow: 1010 l/s | D45: no | E45: 1
B46: 4.7 | C46: SCRUB-R-08 - Flow: 1600 l/s | D46: no | E46: 1
B47: 4.8 | C47: SCRUB-R-09 - Flow: 320 l/s | D47: no | E47: 1
B48: 4.9 | C48: SCRUB-R-11 - Flow: 1440 l/s | D48: no | E48: 1
B49: 4.10 | C49: SCRUB-3-01 - Flow: 400 l/s | D49: no | E49: 1
B51: 5 | C51: Service and commission existing extraction hoods to manufacturers specification
B52: =B51+0.1 -> 5.1 | C52: Various sizes | D52: no | E52: =1+1+1 -> 3
B54: 6 | C54: Service and cleaning existing extraction ducting
B55: 6.1 | C55: Ø 200mm | D55: m | E55: 484
B56: 6.2 | C56: Ø 250mm | D56: m | E56: 48
B57: 6.3 | C57: Ø 300mm | D57: m | E57: 47
B58: 6.4 | C58: Ø 350mm | D58: m | E58: 187
B59: 6.5 | C59: Ø 400mm | D59: m | E59: 57
B60: 6.6 | C60: Ø 450mm | D60: m | E60: 77
B61: 6.7 | C61: Ø 500mm | D61: m | E61: 100
B62: 6.8 | C62: Ø 550mm | D62: m | E62: 29
B63: 6.9 | C63: Ø 600mm | D63: m | E63: 6
B64: 6.10 | C64: Provisional amount for remedial work on ducting | D64: Sum | G64: R250,000.00
B66: 7 | C66: General
B67: =B66+0.1 -> 7.1 | C67: Remove existing transfer grilles, brick up wall, plaster and paint and make good | D67: no | E67: =3+1+1 -> 5
B68: 7.2 | C68: Dismantle and remove existing scrubber in store room 419 with all ancilliary equipment, make up water tank, seal opening in floor | D68: Item
B69: 7.3 | C69: Remove existing ducting, duct mounted fan and window mounted fan in LAB 205 and install new window glass where window fan has been removed | D69: Item
B70: 7.4 | C70: Dismantle and remove existing de-humidifier in laboratories G17 and LG07 | D70: no | E70: =1+1 -> 2
B71: 7.5 | C71: Dismantle and remove existing fume cabinet and all associated ancillary equipment and ducting in laboratory 312 | D71: no | E71: =1 -> 1
B72: 7.6 | C72: Dismantle and remove existing fume cabinets and all associated ancillary equipment and ducting in laboratory 315 | D72: no | E72: =3 -> 3
B73: 7.7 | C73: Dismantle and remove existing fume cabinets and all associated ancillary equipment and ducting in laboratory 404 | D73: no | E73: =2 -> 2
B74: =B72+0.1 -> 7.7 | C74: Dismantle and remove existing filtration system and all associated ancillary equipment and ducting outside laboratory L06 and make good openings in walls | D74: no | E74: =1 -> 1
B75: 7.8 | C75: Dismantle and remove existing ducting, pipes and electrical work on the Southern façade of block D and make good all openings through the walls. | D75: Item | E75: 1
B76: =B74+0.1 -> 7.8 | C76: Dismantle and remove existing PVC ducting and all associated brackets from room 419, brick up, plaster and paint openings in wall where ducting is removed | D76: Item | E76: 1
B77: =B75+0.1 -> 7.9 | C77: Dismantle and remove existing PVC ducting and all associated brackets from room 420, brick up, plaster and paint openings in wall where ducting is removed | D77: Item | E77: 1
B78: =B66+0.1 -> 7.10 | C78: All electrical works to ensure fully operational equipment and the incorporation of the existing equipment on the automatic restart function once power has been restored after a power failure | D78: Item | E78: 1
B79: =B78+0.01 -> 7.11 | C79: Provisional amount to increase fresh air supply with bigger supply air grilles, spigots, connection to existing ducting, commissioning, and builders work | D79: Item | E79: 1 | G79: R150,000.00
C80: Total Carried Forward to Summary

Sheet Section 3
B5: ='P&G''s'!B7 -> APPOINTMENT OF A CONTRACTOR FOR THE LABORATORY EQUIPMENT INSTALLATION CONTRACT
B6: ='P&G''s'!B8 -> FOR THE COUNCIL FOR GEOSCIENCE IN SILVERTON, PRETORIA
B7: SECTION 3: BLOCK D - NEW EQUIPMENT
B8: ='Section 2'!B9 -> All equipment must be supplied as per detail specification
B10: ITEM NO | C10: DESCRIPTION | D10: UNIT | E10: QTY | F10: RATE | G10: AMOUNT
B12: 1 | C12: Supply and install new fume cabinets complete with integral scrubbers, mounting stand, and all ancillary equipment deemed necessary to adhere to National and Regional regulations and as per specifications
B13: =B12+0.1 -> 1.1 | C13: 1200mm work chamber length | D13: no | E13: =2+1 -> 3
B14: 1.2 | C14: 1500mm work chamber length | D14: no | E14: =1+2 -> 3
B15: 1.3 | C15: 1800mm work chamber length | D15: no | E15: 8
B16: =B15+0.1 -> 1.4 | C16: All electrical work complete with electrical supply, isolators, wiring, and connection for the cabinets | D16: no | E16: =E13+E14+E15 -> 14
B18: 2 | C18: Supply and install new perchloric fume cabinets complete with integral scrubbers, mounting stand, and all ancillary equipment deemed necessary to adhere to National and Regional regulations and as per specifications
B19: =B18+0.1 -> 2.1 | C19: 1800mm work chamber length | D19: no | E19: =4 -> 4
B20: =B19+0.1 -> 2.2 | C20: All electrical work complete with electrical supply, isolators, wiring, and connection for the cabinets | D20: no | E20: =E19 -> 4
B22: 3 | C22: Supply and install Perchloric Wet Scrubber complete with an all PVC extraction fan with VSD, automated controls, automated dosing systems, plumbing and and all other ancillary equipment required for the correct functioning of the system.
B23: =B22+0.1 -> 3.1 | C23: Extraction rate 2450 l/s @ 130Pa static pressure(excluding fume cabinet pressure loss) SCRUB-R-10 | D23: no | E23: 1
B24: =B23+0.1 -> 3.2 | C24: Extraction rate 2550 l/s @ 130Pa static pressure(excluding fume cabinet pressure loss) SCRUB-R-02 | D24: no | E24: =1 -> 1
B25: =B24+0.1 -> 3.3 | C25: All electrical work complete with electrical supply, isolators, wiring, and connection for the scrubbers | D25: no | E25: =E23+E24 -> 2
B27: 4 | C27: Supply and install Wet Scrubber complete with automated controls, and all other ancillary equipment required for the correct functioning of the system.
B28: =B27+0.1 -> 4.1 | C28: Extraction rate 1224 l/s @ 130Pa static pressure(excluding fume cabinet pressure loss) SCRUB-R-14 | D28: no | E28: =1 -> 1
B29: =B28+0.1 -> 4.2 | C29: Extraction rate 1330 l/s @ 130Pa static pressure(excluding fume cabinet pressure loss) SCRUB-R-13 | D29: no | E29: =1 -> 1
B31: 5 | C31: Supply and install new stainless steel wall mounted extraction hoods, complete with extraction fan, vapour proof light, controls, switches, and all ancillary equipment deemed necessary to adhere to National and Regional regulations and as per specifications
B32: =B31+0.1 -> 5.1 | C32: 800x800mm | D32: no | E32: =1 -> 1
B33: =B32+0.1 -> 5.2 | C33: 1000x800mm | D33: no | E33: =1+2+1+1 -> 5
B34: =B33+0.1 -> 5.3 | C34: 1500x800mm | D34: no | E34: =1+1+1 -> 3
B35: =B34+0.1 -> 5.4 | C35: 1800x800mm | D35: no | E35: =1+1 -> 2
B36: =B35+0.1 -> 5.5 | C36: 2000x800mm | D36: no | E36: =2 -> 2
B37: =B36+0.1 -> 5.6 | C37: 2000x1000mm | D37: no | E37: =1 -> 1
B38: 5.7 | C38: 3000x800mm | D38: no | E38: =1+1 -> 2
B39: 5.8 | C39: 4000x800mm | D39: no | E39: =1 -> 1
B40: 5.9 | C40: 4600x900mm | D40: no | E40: =1 -> 1
B42: 6 | C42: PVC-U un-insulated extraction ducting for fume cabinets, complete with all running joints and fixtures to support the ducting
B43: =B42+0.1 -> 6.1 | C43: Ø 200mm | D43: m | E43: =32 -> 32
B44: 6.2 | C44: Ø 250mm | D44: m | E44: =6+25+4+4+4+4+4+2+40 -> 93
B45: 6.3 | C45: Ø 300mm | D45: m | E45: =42+32+2+2+44 -> 122
B46: 6.4 | C46: Ø 350mm | D46: m | E46: =7+30 -> 37
B47: 6.5 | C47: Ø 400mm | D47: m | E47: =5 -> 5
B48: 6.6 | C48: Ø 450mm | D48: m | E48: =6 -> 6
B49: 6.7 | C49: Ø 500mm | D49: m | E49: =10+32 -> 42
B50: 6.8 | C50: Ø 600mm | D50: m | E50: =26+44 -> 70
B52: 7 | C52: PVC-U un-insulated extraction ducting 90° Radius Bend for fume cabinets, complete with all running joints and fixtures to support the ducting
B53: =B52+0.1 -> 7.1 | C53: Ø 200mm | D53: no | E53: =8 -> 8
B54: 7.2 | C54: Ø 250mm | D54: no | E54: =4+8 -> 12
B55: 7.3 | C55: Ø 300mm | D55: no | E55: =8+6+10 -> 24
B56: 7.4 | C56: Ø 350mm | D56: no | E56: =1 -> 1
B57: =B56+0.1 -> 7.5 | C57: Ø 400mm | D57: no | E57: 1
B58: 7.6 | C58: Ø 450mm | D58: no | E58: 6
B59: 7.7 | C59: Ø 500mm | D59: no | E59: =6 -> 6
B60: 7.8 | C60: Ø 600mm | D60: no | E60: =9 -> 9
B62: 8 | C62: PVC-U un-insulated extraction ducting 45° Radius Bend for fume cabinets, complete with all running joints and fixtures to support the ducting
B63: =B62+0.1 -> 8.1 | C63: Ø 600mm | D63: no | E63: =2+2 -> 4
B65: 9 | C65: PVC-U un-insulated extraction ducting Transition for fume cabinets, complete with all running joints and fixtures to support the ducting
B66: =B65+0.1 -> 9.1 | C66: Ø 250mm to Ø 350mm | D66: no | E66: =2*1 -> 2
B67: 9.2 | C67: Ø 400mm to Ø 450mm | D67: no | E67: 1
B68: 9.3 | C68: Ø 450mm to Ø 500mm | D68: no | E68: 1
B69: 9.4 | C69: Ø 500mm to Ø 600mm | D69: no | E69: 1
B71: 10 | C71: PVC-U un-insulated extraction ducting Spigot for fume cabinets and hoods, complete with all running joints and fixtures to support the ducting
B72: =B71+0.1 -> 10.1 | C72: Ø 250mm | D72: no | E72: =E16 -> 14
B73: =B72+0.1 -> 10.2 | C73: Ø 350mm | D73: no | E73: 2
B75: 11 | C75: PVC-U un-insulated extraction ducting Stop End for fume cabinets, complete with all running joints and fixtures to support the ducting
B76: =B75+0.1 -> 11.1 | C76: Ø 600mm | D76: no | E76: 1
B78: 12 | C78: PVC-U un-insulated Duct mounted volume control dampers for extraction ducting for fume cabinets, complete with adequate support and joints
B79: =B78+0.1 -> 12.1 | C79: Ø 250mm - BD1 | D79: no | E79: =E72 -> 14
B80: =B79+0.1 -> 12.2 | C80: Ø 350mm - BD2 | D80: no | E80: 2
B82: 13 | C82: PVC-U un-insulated Duct mounted fusible link fire dampers for extraction ducting for fume cabinets, complete with adequate support and joints
B83: =B82+0.1 -> 13.1 | C83: Ø 450mm | D83: no | E83: 2
B84: 13.2 | C84: Ø 500mm | D84: no | E84: 2
B85: 13.3 | C85: Ø 600mm | D85: no | E85: 2
B87: 14 | C87: Hood extraction un-insulated galvanised sheet metal ducting, complete with supports and brackets
B88: =B87+0.1 -> 14.1 | C88: Ø 300mm | D88: m | E88: =3+45+10+20 -> 78
B89: =B88+0.1 -> 14.2 | C89: Ø 300mm 90° bend | D89: no | E89: =1+6+6+6 -> 19
B90: 14.3 | C90: Ø 300mm to 500x700mm Transformation piece | D90: no | E90: =1 -> 1
B91: =B87+0.1 -> 14.1 | C91: Ø 325mm | D91: m | E91: =24 -> 24
B92: =B91+0.1 -> 14.2 | C92: Ø 325mm 90° bend | D92: no | E92: =6 -> 6
B93: 14.3 | C93: Ø 325mm to 700x700mm Transformation piece | D93: no | E93: =1 -> 1
B94: =B90+0.1 -> 14.4 | C94: Ø 350mm | D94: m | E94: =8+30+3 -> 41
B95: 14.5 | C95: Ø 350mm 90° bend | D95: no | E95: =4+8+1 -> 13
B96: 14.6 | C96: Ø 350mm to 500x700mm Transformation piece | D96: no | E96: =1 -> 1
B97: =B96+0.1 -> 14.7 | C97: Ø 400mm | D97: m | E97: =12 -> 12
B98: 14.8 | C98: Ø 400mm 90° bend | D98: no | E98: =8 -> 8
B99: 14.9 | C99: Ø 450mm | D99: m | E99: =4+3 -> 7
B100: =B88 -> 14.10 | C100: Ø 450mm 90° bend | D100: no | E100: =3+3 -> 6
B101: =B100+0.01 -> 14.11 | C101: Ø 450mm to 800x400mm Transformation piece | D101: no | E101: =1 -> 1
B102: =B101+0.01 -> 14.12 | C102: Ø 450mm to 1000x400mm Transformation piece | D102: no | E102: =1 -> 1
B104: 15 | C104: Supply and install fan coil unit with decorative cover all as per specifications and drawings, complete with electrical cabling from local power point, control unit, etc.
B105: =B104+0.1 -> 15.1 | C105: Total Cooling: 2,6kW; Sensible Cooling: 2.3kW; Heating: 1.9kW | D105: no | E105: =2 -> 2
B106: 15.2 | C106: All electrical work complete with electrical supply, isolators, wiring, and connection for the units | D106: no | E106: =E105 -> 2
B108: 16 | C108: Internally routed pipework - Supply and install thermally insulated Mepla or similar approved piping for chilled water application, all as described in the specification
B109: =B108+0.1 -> 16.1 | C109: ø20 mm | D109: m | E109: 42
B110: 16.2 | C110: ø20 mm 90° bend | D110: no | E110: =8*6 -> 48
B111: 16.3 | C111: ø20 mm - ø20 mm - ø20 mm Equal T's | D111: no | E111: 16
B112: 16.4 | C112: ø65 mm - ø65 mm - ø20 mm Equal T's | D112: no | E112: 8
B113: 16.5 | C113: Provisional amount allowed for connecting to existing Mepla pipes | D113: Sum | G113: R15,000.00
B115: 17 | C115: Supply and install ball-valve type isolation valves for pipework up to and including 50dia, all as per specification. Steel DN sizes quoted, price to include ancillary fittings required to connect to Mepla or similar approved piping where requied.
B116: =B115+0.1 -> 17.1 | C116: ø20 mm | D116: no | E116: 8
B118: 18 | C118: Supply and install double regulating balancing valve complete with measuring station, all as per specification. Steel DN sizes quoted, price to include ancillary fittings required to connect to Mepla or similar approved piping where requied.
B119: =B118+0.1 -> 18.1 | C119: ø20 mm | D119: no | E119: 4
B121: 19 | C121: Supply and install drain cocks, all as per specification. Steel DN sizes quoted, price to include ancillary fittings required to connect to Mepla or similar approved piping where requied.
B122: =B121+0.1 -> 19.1 | C122: ø20 mm | D122: no | E122: 4
B124: 20 | C124: Supply and install binder points in pipework. Steel DN sizes quoted, price to include ancillary fittings required to connect to Mepla or similar approved piping where requied.
B125: =B124+0.1 -> 20.1 | C125: ø20 mm | D125: no | E125: 8
B127: 21 | C127: Supply and install strainers, all as per specification. Steel DN sizes quoted, price to include ancillary fittings required to connect to Mepla or similar approved piping where requied.
B128: =B127+0.1 -> 21.1 | C128: ø20 mm | D128: no | E128: 4
B130: 22 | C130: Supply and install condensate drainage system complete with all pipework, fittings, accessories, rodding points and insulation on first 3m from all hydronic water terminal drip trays, all as per specification.
B131: =B130+0.1 -> 22.1 | C131: ø25 mm | D131: m | E131: 30
B132: 22.2 | C132: Provisional amount allowed for connecting to existing condensate drain pipes | D132: Sum | G132: R2,500.00
B134: 23 | C134: Supply and install extraction fans, complete with all fittings, sound attenuators, accessories, mounting brackets, vibration isolators, electrical connections, VSD, switching and all as per specification.
B135: =B134+0.1 -> 23.1 | C135: Window mounted extraction fan 100 l/s | D135: no | E135: =1 -> 1
B136: 23.2 | C136: Window mounted extraction fan 200 l/s | D136: no | E136: =1 -> 1
B137: 23.3 | C137: In line silent fan 100 l/s @ 110Pa | D137: no | E137: =1 -> 1
B138: 23.4 | C138: In line silent fan 224 l/s @ 220Pa | D138: no | E138: =1 -> 1
B139: 23.5 | C139: In line silent fan 420 l/s @ 110Pa | D139: no | E139: =1 -> 1
B140: 23.6 | C140: Axial flow fan 280 l/s@ 110Pa | D140: no | E140: =1 -> 1
B141: 23.7 | C141: Axial flow fan 280 l/s@ 220Pa | D141: no | E141: =1 -> 1
B142: 23.8 | C142: Axial flow fan 420 l/s@ 275Pa | D142: no | E142: =1 -> 1
B143: 23.9 | C143: Axial flow fan 560 l/s@ 110Pa | D143: no | E143: =1 -> 1
B144: =B135 -> 23.10 | C144: Axial flow fan 700 l/s@ 132Pa | D144: no | E144: =1+1 -> 2
B145: =B144+0.01 -> 23.11 | C145: Axial flow fan 720 l/s@ 250Pa | D145: no | E145: =1+1 -> 2
B146: 23.12 | C146: Axial flow fan 840 l/s@ 110Pa | D146: no | E146: =1+1 -> 2
B147: 23.13 | C147: Axial flow fan 1120 l/s@ 242Pa | D147: no | E147: =1 -> 1
B148: 23.14 | C148: Axial flow fan 1120 l/s@110Pa | D148: no | E148: =1 -> 1
B149: 23.15 | C149: Axial flow fan 1450 l/s@ 154Pa | D149: no | E149: =1 -> 1
B150: 23.16 | C150: Corrosion resistant centrigugal fan 1330 l/s@ 250Pa | D150: no | E150: =1 -> 1
B151: 23.17 | C151: All electrical work complete with electrical supply, isolators, wiring, and connection for the units | D151: no | E151: =SUM(E135:E147) -> 16
B153: 24 | C153: Supply and install air handling unit with primary dust filter, activated carbon filter, fan, sensors, BMS compatible output and connections, electrical connections, switching, controls, and galvanised steel frame with vibration isolators and all as per specification.
B154: =B153+0.1 -> 24.1 | C154: Duty 420 l/s | D154: no | E154: =1 -> 1
B155: 24.2 | C155: Duty 560 l/s | D155: no | E155: =1+1 -> 2
B156: 24.3 | C156: Duty 700 l/s | D156: no | E156: =1 -> 1
B158: 25 | C158: Supply and install dust extraction units, complete with all fittings, sound attenuators, accessories, mounting brackets, vibration isolators, electrical connections, switching and all as per specification.
B159: =B158+0.1 -> 25.1 | C159: Duty 700 l/s, including hoods, extraction points, flexible connections, dampers, ducting and controls | D159: no | E159: 2
B160: 25.2 | C160: Duty 1200 l/s, including hoods, extraction points, flexible connections, dampers, ducting and controls | D160: no | E160: 1
B161: 25.3 | C161: All electrical work complete with electrical supply, isolators, wiring, and connection for the units | D161: no | E161: =E159+E160 -> 3
B163: 26 | C163: General
B164: =B163+0.1 -> 26.1 | C164: Provisional amount for the upgrade of the existing BMS system to manage and control all equipment under this project, complete with sensors, wiring, software upgrades, programmimg, all as per specification | D164: Sum | G164: R1,800,000.00
B165: =B164+0.1 -> 26.2 | C165: Provisional amount for builders work | D165: Sum | G165: R350,000.00
B166: =B165+0.1 -> 26.3 | C166: Provisional amount for repositioning existing services | D166: Sum | G166: R250,000.00
B167: 26.4 | C167: Provisional amount for adjusting duct routes to accommodate obstructions | D167: Sum | G167: R300,000.00
B168: 26.5 | C168: Provisional amount for repositioning existing services at laboratory 205 | D168: Sum | G168: R20,000.00
B169: =B168+0.1 -> 26.6 | C169: Provisional amount for builders work in DL01B | D169: Sum | G169: =80*1000 -> R80,000.00
B170: 26.7 | C170: Door grille installed in door 400x400mm | D170: no | E170: =1+1 -> 2
B171: 26.8 | C171: Weather louvre 400x400mm installed in window frame | D171: no | E171: =1 -> 1
B172: 26.9 | C172: Weather louvre 500x700mm installed in window frame | D172: no | E172: =2 -> 2
B173: =B164 -> 26.10 | C173: Weather louvre 800x400mm installed in window frame | D173: no | E173: =1 -> 1
B174: =B173+0.01 -> 26.11 | C174: Weather louvre 1000x400mm installed in window frame | D174: no | E174: =1 -> 1
B175: =B174+0.01 -> 26.12 | C175: Weather louvre 1800x1000mm installed in window frame with primary dust filter Laboratory 234 | D175: no | E175: =1 -> 1
B176: 26.13 | C176: Remove and seal opening in Laboratory 234 door and make door airtight | D176: no | E176: =1 -> 1
B177: 26.14 | C177: Extend existing 250x350mm galvanised sheet metal ducting Laboratory 311 | D177: m | E177: =4 -> 4
B178: =B177+0.01 -> 26.15 | C178: New insulated fresh air galvanised sheet metal ducting 2 meters long connected to existing ducting with double deflection supply air grille, 400x250mm in Laboratory 316 weigh room | D178: no | E178: =1 -> 1
B179: 26.16 | C179: Activated filter for HaOH, HCI and ethanol with housing and access doors in Lower ground floor laboratory as part of the fume cabinet | D179: no | E179: =1 -> 1
B180: 26.17 | C180: Activated filter for CO2, SO2 and NO2 at 560 l/s air flow rate in Laboratory L04 | D180: no | E180: =1 -> 1
B181: 26.18 | C181: Primary and secondary filter box 600x600mm | D181: no | E181: =1+1 -> 2
B182: 26.19 | C182: Wall mounted room humidifier, 10kg/hr, complete with water and drain connections, electrical supply and connection, sensors and controls | D182: no | E182: =1 -> 1
B183: 26.20 | C183: All electrical work including automatic restart function once power has been restored after a power failure | D183: Item | E183: =1 -> 1
C184: Total Carried Forward to Summary

Sheet Section 4
B6: ='[1]Section 1'!B2 -> APPOINTMENT OF A CONTRACTOR FOR THE LABORATORY EQUIPMENT INSTALLATION CONTRACT
B7: ='[1]Section 1'!B3 -> FOR THE COUNCIL FOR GEOSCIENCE IN SILVERTON, PRETORIA
B8: SECTION 4: BLOCK D - UPGRADES ON EXISTING EQUIPMENT
B9: All equipment must be supplied as per detail specification
B11: ITEM NO | C11: DESCRIPTION | D11: UNIT | E11: QTY | F11: RATE | G11: AMOUNT
B13: 1 | C13: Redo plumbing work on existing scrubbing systems to manufacturers specification
B14: =B13+0.1 -> 1.1 | C14: SCRUB-R-01 | D14: no | E14: 1
B15: =B14+0.1 -> 1.2 | C15: SCRUB-R-02 | D15: no | E15: 1
B16: =B15+0.1 -> 1.3 | C16: SCRUB-R-03 | D16: no | E16: 1
B17: 1.4 | C17: SCRUB-R-04 | D17: no | E17: 1
B18: 1.5 | C18: SCRUB-R-05 | D18: no | E18: 1
B19: 1.6 | C19: SCRUB-R-06 | D19: no | E19: 1
B20: 1.7 | C20: SCRUB-R-07 | D20: no | E20: 1
B21: 1.8 | C21: SCRUB-R-08 | D21: no | E21: 1
B22: 1.9 | C22: SCRUB-R-09 | D22: no | E22: 1
B23: =B13+0.1 -> 1.10 | C23: SCRUB-R-11 | D23: no | E23: 1
B24: =B23+0.01 -> 1.11 | C24: SCRUB-3-01 | D24: no | E24: 1
B26: 2 | C26: Replace and commission existing magnetic pumps on existing scrubbing systems to manufacturers specification
B27: =B26+0.1 -> 2.1 | C27: SCRUB-R-01 - Flow: 80 l/min @ 9m head | D27: no | E27: 1
B28: =B27+0.1 -> 2.2 | C28: SCRUB-R-02 - Flow: 20 l/min @ 12m head | D28: no | E28: 1
B29: =B28+0.1 -> 2.3 | C29: SCRUB-R-03 - Flow: 20 l/min @ 12m head | D29: no | E29: 1
B30: 2.4 | C30: SCRUB-R-04 - Flow: 80 l/min @ 9m head | D30: no | E30: 1
B31: 2.5 | C31: SCRUB-R-05 - Flow: 80 l/min @ 9m head | D31: no | E31: 1
B32: 2.6 | C32: SCRUB-R-06 - Flow: 80 l/min @ 9m head | D32: no | E32: 1
B33: 2.7 | C33: SCRUB-R-07 - Flow: 70 l/min @ 9m head | D33: no | E33: 1
B34: 2.8 | C34: SCRUB-R-08 - Flow: 80 l/min @ 9m head | D34: no | E34: 1
B35: 2.9 | C35: SCRUB-R-09 - Flow: 20 l/min @ 12m head | D35: no | E35: 1
B36: =B26+0.1 -> 2.10 | C36: SCRUB-R-11 - Flow: 80 l/min @ 9m head | D36: no | E36: 1
B37: =B36+0.01 -> 2.11 | C37: SCRUB-3-01 - Flow: 80 l/min @ 9m head | D37: no | E37: 1
B39: 3 | C39: Install and commission new VSD on existing scrubbing systems fans to manufacturers specification
B40: =B39+0.1 -> 3.1 | C40: SCRUB-R-01 - Flow: 320 l/s, 0,55kW | D40: no | E40: 1
B41: =B40+0.1 -> 3.2 | C41: SCRUB-R-02 - Flow: 1325 l/s, 0,75kW | D41: no | E41: 1
B42: 3.3 | C42: SCRUB-R-03 - Flow: 1325 l/s, 1,5kW | D42: no | E42: 1
B43: 3.4 | C43: SCRUB-R-04 - Flow: 1440 l/s, 2,2kW | D43: no | E43: 1
B44: 3.5 | C44: SCRUB-R-05 - Flow: 1920 l/s, 8kW | D44: no | E44: 1
B45: 3.6 | C45: SCRUB-R-06 - Flow: 1600 l/s, 4kW | D45: no | E45: 1
B46: 3.7 | C46: SCRUB-R-08 - Flow: 1600 l/s, 4kW | D46: no | E46: 1
B47: 3.8 | C47: SCRUB-R-09 - Flow: 320 l/s, 0,55kW | D47: no | E47: 1
B48: 3.9 | C48: SCRUB-R-11 - Flow: 1440 l/s, 2,2kW | D48: no | E48: 1
B49: =B39+0.1 -> 3.10 | C49: SCRUB-3-01 - Flow: 400 l/s, 1,5 | D49: no | E49: 1
B50: =B49+0.01 -> 3.11 | C50: FAN-1-01 - 1,5Kw | D50: no | E50: 1
B51: 3.12 | C51: FAN-2-01 - 1,1Kw | D51: no | E51: 1
B52: 3.13 | C52: FAN-3-01 - 1,5Kw | D52: no | E52: 1
B53: 3.14 | C53: FAN-4-01 - 1,5Kw | D53: no | E53: 1
B54: 3.15 | C54: FAN-5-01 - 0,55Kw | D54: no | E54: 1
B55: 3.16 | C55: FAN-55-01 - 2,2Kw | D55: no | E55: 1
B57: 4 | C57: Electrical
B58: =B57+0.1 -> 4.1 | C58: Install new electrical wiring from new DB, connections, isolators for exsiting scrubbers | D58: no | E58: 11
B59: 4.2 | C59: Replace existing DB with new one, complete with circuit breakers, main breakers, Volt meters, status panel indicating lights | D59: no | E59: 2
B60: 4.3 | C60: Provisional amount for New remote controllers for laboratories 300, 303 and 311 | D60: Item | E60: 3 | F60: R35,000.00 | G60: =E60*F60 -> R105,000.00
B61: 4.4 | C61: All electrical works to ensure fully operational equipment and the incorporation of the existing equipment on the automatic restart function once power has been restored after a power failure | D61: Item | E61: 1
B63: 5 | C63: General
B64: =B63+0.1 -> 5.1 | C64: Provisional amount for additional work on roof plantroom | D64: Item | E64: 1 | F64: R250,000.00 | G64: =E64*F64 -> R250,000.00
C65: Total Carried Forward to Summary

Sheet Summary
B6: ='Section 2'!B6 -> APPOINTMENT OF A CONTRACTOR FOR THE LABORATORY EQUIPMENT INSTALLATION CONTRACT
B7: ='Section 2'!B7 -> FOR THE COUNCIL FOR GEOSCIENCE IN SILVERTON, PRETORIA
B8: SUMMARY OF BILL OF QUANTITIES
B10: ITEM NO | C10: DESCRIPTION | D10: TOTALS
B12: 1 | C12: ='P&G''s'!B9 -> SECTION 1200A: PRELIMINARY AND GENERAL
B13: =B12+1 -> 2 | C13: ='Section 1'!B7 -> SECTION 1: GENERAL REQUIREMENTS
B14: =B13+1 -> 3 | C14: ='Section 2'!B8 -> SECTION 2: BLOCK D - WORK ON EXISTING EQUIPMENT
B15: =B14+1 -> 4 | C15: ='Section 3'!B7 -> SECTION 3: BLOCK D - NEW EQUIPMENT
B16: =B15+1 -> 5 | C16: ='Section 4'!B8 -> SECTION 4: BLOCK D - UPGRADES ON EXISTING EQUIPMENT
C18: Total Bill of Quantities
C19: VAT at 15%
C20: Total Bill of Quantities inclusive of VAT
B24: Signature: | D24: Date:
